[Event "AUT-ch Open 2020"]
[Site "Graz"]
[Date "2020.02.15"]
[Round "2.8"]
[White "Zadruzny, Nicolaj"]
[Black "Pavlov, Mark"]
[Result "1-0"]
[ECO "A05"]
[WhiteElo "2334"]
[BlackElo "2152"]
[Annotator "ChessBase"]
[PlyCount "129"]
[EventDate "2020.02.14"]
[EventType "swiss"]
[EventCountry "AUT"]
[SourceTitle "playchess.com"]
[Source "ChessBase"]
[SourceQuality "1"]
[TimeControl "40/5400+30:1800+30"]

1. Nf3 {[%emt 0:00:00]} Nf6 {[%emt 0:00:58]} 2. g3 {[%emt 0:00:00]} b5 {[%emt 0:03:29]} 3. Bg2 {[%emt 0:01:59]} Bb7 {[%emt 0:00:04]} 4. O-O {[%emt 0:04:13]} e6 {[%emt 0:00:13]} 5. d3 {[%emt 0:04:26]} d5 {[%emt 0:04:07]} 6. Nbd2 {[%emt 0:01:31]} Be7 {[%emt 0:02:58]} 7. e4 {[%emt 0:06:09]} O-O {[%emt 0:01:32]} 8. Re1 {[%emt 0:02:31]} c5 {[%emt 0:02:00]} 9. exd5 {[%emt 0:03:34]} exd5 {[%emt 0:02:25]} 10. a4 {[%emt 0:01:17]} a6 {[%emt 0:06:46]} 11. d4 {[%emt 0:05:48]} Nbd7 {[%emt 0:09:25]} 12. dxc5 {[%emt 0:02:26]} Bxc5 {[%emt 0:03:54]} 13. Nb3 {[%emt 0:01:16]} Bb6 {[%emt 0:00:27]} 14. axb5 {[%emt 0:07:52]} axb5 {[%emt 0:00:08]} 15. Rxa8 {[%emt 0:00:07]} Qxa8 {[%emt 0:00:12]} 16. Nfd4 {[%emt 0:54:51]} Ne4 {[%emt 0:07:41]} 17. Be3 {[%emt 0:00:00]} Ne5 {[%emt 0:01:58]} 18. Nxb5 {[%emt 0:00:00]} Bxe3 {[%emt 0:00:13]} 19. Rxe3 {[%emt 0:00:00]} Nc4 {[%emt 0:00:25]} 20. Re1 {[%emt 0:00:00]} Nxb2 {[%emt 0:04:30]} 21. Qd4 {[%emt 0:00:00]} Qa4 {[%emt 0:00:10]} 22. Qxa4 {[%emt 0:00:00]} Nxa4 {[%emt 0:00:08]} 23. Na5 {[%emt 0:00:00]} Ba8 {[%emt 0:00:51]} 24. Nc7 {[%emt 0:00:00]} Nac3 {[%emt 0:01:49]} 25. f3 {[%emt 0:00:00]} Nd6 {[%emt 0:02:19]} 26. Bh3 {[%emt 0:00:00]} d4 {[%emt 0:01:39]} 27. Kf2 {[%emt 0:00:00]} h6 {[%emt 0:01:40]} 28. Nb3 {[%emt 0:00:00]} Ndb5 {[%emt 0:15:18]} 29. Nxb5 {[%emt 0:00:00]} Nxb5 {[%emt 0:00:07]} 30. Bf1 {[%emt 0:00:00]} Nc3 {[%emt 0:09:36]} 31. Nxd4 {[%emt 0:00:00]} Rd8 {[%emt 0:02:41]} 32. Bd3 {[%emt 0:00:00]} g6 {[%emt 0:00:33]} 33. Ra1 {[%emt 0:02:29]} Nd5 {[%emt 0:01:21]} 34. Be4 {[%emt 0:00:50]} Nc3 {[%emt 0:00:45]} 35. Bd3 {[%emt 0:01:42]} Nd5 {[%emt 0:00:04]} 36. Be4 {[%emt 0:02:29]} Nc3 {[%emt 0:00:11]} 37. Bxa8 {[%emt 0:00:06]} Rxd4 {[%emt 0:00:03]} 38. Ke3 {[%emt 0:00:31]} Rd6 {[%emt 0:00:13]} 39. Ra3 {[%emt 0:01:50]} Re6+ {[%emt 0:01:29]} 40. Kd3 {[%emt 0:00:49]} Nd1 {[%emt 0:00:19]} 41. Kd2 {[%emt 0:03:01]} Nb2 {[%emt 0:01:11]} 42. Bd5 {[%emt 0:07:20]} Rd6 {[%emt 0:01:08]} 43. Kc1 {[%emt 0:00:10]} Rxd5 {[%emt 0:00:09]} 44. Kxb2 {[%emt 0:00:05]} Rd2 {[%emt 0:00:07]} 45. h4 {[%emt 0:00:08]} Rg2 {[%emt 0:00:10]} 46. f4 {[%emt 0:00:07]} Kg7 {[%emt 0:00:00]} 47. Re3 {[%emt 0:04:27]} g5 {[%emt 0:00:09]} 48. fxg5 {[%emt 0:00:42]} hxg5 {[%emt 0:00:06]} 49. hxg5 {[%emt 0:00:11]} Kg6 {[%emt 0:00:03]} 50. Kb3 {[%emt 0:05:46]} Kxg5 {[%emt 0:00:08]} 51. c4 {[%emt 0:00:09]} f5 {[%emt 0:04:36]} 52. c5 {[%emt 0:00:38]} f4 {[%emt 0:00:27]} 53. gxf4+ {[%emt 0:00:05]} Kxf4 {[%emt 0:00:03]} 54. Re1 {[%emt 0:00:08]} Kf5 {[%emt 0:01:50]} 55. Kc4 {[%emt 0:00:35]} Rc2+ {[%emt 0:00:27]} 56. Kd5 {[%emt 0:00:36]} Rd2+ {[%emt 0:00:10]} 57. Kc6 {[%emt 0:00:08]} Rc2 {[%emt 0:00:03]} 58. Kb6 {[%emt 0:00:28]} Rb2+ {[%emt 0:00:10]} 59. Kc7 {[%emt 0:00:07]} Rc2 {[%emt 0:00:06]} 60. c6 {[%emt 0:00:11]} Kf6 {[%emt 0:00:28]} 61. Kd7 {[%emt 0:00:54]} Rd2+ {[%emt 0:00:06]} 62. Kc8 {[%emt 0:00:10]} Rc2 {[%emt 0:00:04]} 63. c7 {[%emt 0:00:07]} Kf7 {[%emt 0:00:11]} 64. Rb1 {[%emt 0:00:30]} Ke7 {[%emt 0:01:36]} 65. Kb8 {[%emt 0:00:15]} 1-0

[Event "AUT-ch Open 2020"]
[Site "Graz"]
[Date "2020.02.15"]
[Round "2.9"]
[White "Sandhoefner, Florian"]
[Black "Eibinger, Manuel"]
[Result "1-0"]
[ECO "B83"]
[WhiteElo "2328"]
[BlackElo "2021"]
[Annotator "ChessBase"]
[PlyCount "87"]
[EventDate "2020.02.14"]
[EventType "swiss"]
[EventCountry "AUT"]
[SourceTitle "playchess.com"]
[Source "ChessBase"]
[SourceQuality "1"]
[TimeControl "40/5400+30:1800+30"]

1. e4 {[%emt 0:00:00]} c5 {[%emt 0:00:00]} 2. Nf3 {[%emt 0:00:00]} e6 {[%emt 0:00:00]} 3. d4 {[%emt 0:00:00]} cxd4 {[%emt 0:00:00]} 4. Nxd4 {[%emt 0:00:00]} Nc6 {[%emt 0:00:00]} 5. Nc3 {[%emt 0:00:00]} Qc7 {[%emt 0:00:00]} 6. Be2 {[%emt 0:00:00]} Nf6 {[%emt 0:00:10]} 7. O-O {[%emt 0:00:02]} Be7 {[%emt 0:00:10]} 8. Kh1 {[%emt 0:00:24]} O-O {[%emt 0:00:20]} 9. f4 {[%emt 0:00:40]} d6 {[%emt 0:00:08]} 10. Be3 {[%emt 0:00:11]} Nxd4 {[%emt 0:04:44]} 11. Bxd4 {[%emt 0:00:04]} e5 {[%emt 0:00:41]} 12. Be3 {[%emt 0:00:55]} exf4 {[%emt 0:00:13]} 13. Bxf4 {[%emt 0:00:27]} Be6 {[%emt 0:00:11]} 14. Bd3 {[%emt 0:04:09]} Rfd8 {[%emt 0:07:33]} 15. Qf3 {[%emt 0:11:25]} Qa5 {[%emt 0:04:12]} 16. Rae1 {[%emt 0:03:32]} Qh5 {[%emt 0:04:16]} 17. Qf2 {[%emt 0:15:37]} Ng4 {[%emt 0:16:05]} 18. Qd2 {[%emt 0:02:14]} Ne5 {[%emt 0:13:46]} 19. Nd5 {[%emt 0:04:36]} Bf8 {[%emt 0:02:56]} 20. Nc7 {[%emt 0:12:01]} Nxd3 {[%emt 0:05:49]} 21. Qxd3 {[%emt 0:03:50]} Rac8 {[%emt 0:02:10]} 22. Nxe6 {[%emt 0:00:19]} fxe6 {[%emt 0:00:03]} 23. Qb3 {[%emt 0:00:35]} d5 {[%emt 0:01:28]} 24. c3 {[%emt 0:12:10]} b6 {[%emt 0:03:32]} 25. exd5 {[%emt 0:01:19]} exd5 {[%emt 0:34:03]} 26. Re5 {[%emt 0:01:10]} Qf7 {[%emt 0:00:00]} 27. Qd1 {[%emt 0:00:59]} Qb7 {[%emt 0:00:00]} 28. Bg5 {[%emt 0:01:42]} Rd7 {[%emt 0:00:00]} 29. Rff5 {[%emt 0:16:48]} h6 {[%emt 0:00:00]} 30. Bh4 {[%emt 0:02:39]} g5 {[%emt 0:00:00]} 31. Bf2 {[%emt 0:01:13]} Rcd8 {[%emt 0:00:00]} 32. Bd4 {[%emt 0:01:03]} Rf7 {[%emt 0:00:00]} 33. Qh5 {[%emt 0:02:38]} Rd6 {[%emt 0:00:00]} 34. h4 {[%emt 0:02:23]} Rxf5 {[%emt 0:00:00]} 35. Rxf5 {[%emt 0:00:08]} Qh7 {[%emt 0:00:00]} 36. Qf3 {[%emt 0:01:17]} Be7 {[%emt 0:00:00]} 37. Rxd5 {[%emt 0:00:34]} Qb1+ {[%emt 0:00:00]} 38. Kh2 {[%emt 0:00:43]} Qxa2 {[%emt 0:01:35]} 39. Rf5 {[%emt 0:00:48]} Rd8 {[%emt 0:04:25]} 40. hxg5 {[%emt 0:00:30]} Bxg5 {[%emt 0:00:43]} 41. Qb7 {[%emt 0:30:36]} Rxd4 {[%emt 0:02:30]} 42. cxd4 {[%emt 0:00:00]} Qxb2 {[%emt 0:00:16]} 43. Qf7+ {[%emt 0:00:00]} Kh8 {[%emt 0:00:04]} 44. Re5 {[%emt 0:00:00]} 1-0

[Event "AUT-ch Open 2020"]
[Site "Graz"]
[Date "2020.02.15"]
[Round "2.10"]
[White "Matosec, Thomas"]
[Black "Lim, Zhuo Ren"]
[Result "0-1"]
[ECO "B23"]
[WhiteElo "2071"]
[BlackElo "2296"]
[Annotator "ChessBase"]
[PlyCount "100"]
[EventDate "2020.02.14"]
[EventType "swiss"]
[EventCountry "AUT"]
[SourceTitle "playchess.com"]
[Source "ChessBase"]
[SourceQuality "1"]
[TimeControl "40/5400+30:1800+30"]

1. e4 {[%emt 0:00:00]} c5 {[%emt 0:00:00]} 2. Nc3 {[%emt 0:00:00]} d6 {[%emt 0:00:20]} 3. f4 {[%emt 0:00:00]} Nc6 {[%emt 0:00:22]} 4. Nf3 {[%emt 0:00:09]} g6 {[%emt 0:00:31]} 5. Bb5 {[%emt 0:00:30]} Bd7 {[%emt 0:00:15]} 6. a4 {[%emt 0:00:12]} Bg7 {[%emt 0:00:24]} 7. O-O {[%emt 0:00:16]} Nf6 {[%emt 0:04:55]} 8. d3 {[%emt 0:00:50]} O-O {[%emt 0:00:28]} 9. h3 {[%emt 0:00:33]} a6 {[%emt 0:05:17]} 10. Bc4 {[%emt 0:00:21]} Nd4 {[%emt 0:00:16]} 11. Nxd4 {[%emt 0:16:27]} cxd4 {[%emt 0:00:05]} 12. Nd5 {[%emt 0:00:04]} Nxd5 {[%emt 0:05:55]} 13. Bxd5 {[%emt 0:00:22]} e6 {[%emt 0:00:08]} 14. Bb3 {[%emt 0:00:23]} Kh8 {[%emt 0:04:42]} 15. Bd2 {[%emt 0:03:45]} a5 {[%emt 0:01:02]} 16. Bc4 {[%emt 0:04:34]} Qe8 {[%emt 0:01:34]} 17. b4 {[%emt 0:03:11]} Bxa4 {[%emt 0:05:47]} 18. bxa5 {[%emt 0:02:08]} Bc6 {[%emt 0:02:16]} 19. Bb4 {[%emt 0:02:22]} Qd7 {[%emt 0:00:05]} 20. Qe1 {[%emt 0:22:57]} Rfe8 {[%emt 0:04:38]} 21. Bb3 {[%emt 0:00:19]} f5 {[%emt 0:06:29]} 22. e5 {[%emt 0:03:48]} dxe5 {[%emt 0:00:13]} 23. fxe5 {[%emt 0:00:10]} Bd5 {[%emt 0:00:50]} 24. Bd6 {[%emt 0:12:38]} Bxb3 {[%emt 0:00:46]} 25. cxb3 {[%emt 0:00:02]} Qb5 {[%emt 0:00:12]} 26. b4 {[%emt 0:00:34]} Qxd3 {[%emt 0:01:05]} 27. Rd1 {[%emt 0:01:49]} Qe3+ {[%emt 0:03:48]} 28. Kh1 {[%emt 0:02:40]} Rec8 {[%emt 0:07:37]} 29. Qh4 {[%emt 0:01:34]} Rc2 {[%emt 0:08:43]} 30. Rfe1 {[%emt 0:02:31]} Qc3 {[%emt 0:01:57]} 31. Qxd4 {[%emt 0:01:26]} Qg3 {[%emt 0:00:23]} 32. Qg1 {[%emt 0:01:13]} Rac8 {[%emt 0:04:39]} 33. Rc1 {[%emt 0:01:25]} Bh6 {[%emt 0:00:55]} 34. Rxc2 {[%emt 0:00:15]} Rxc2 {[%emt 0:00:04]} 35. Rf1 {[%emt 0:03:14]} Bf4 {[%emt 0:02:37]} 36. Rf3 {[%emt 0:02:57]} Qh4 {[%emt 0:01:06]} 37. Be7 {[%emt 0:00:24]} g5 {[%emt 0:01:32]} 38. Bf6+ {[%emt 0:01:59]} Kg8 {[%emt 0:01:16]} 39. Rd3 {[%emt 0:04:34]} Rc1 {[%emt 0:01:34]} 40. Rd1 {[%emt 0:00:02]} Rc3 {[%emt 0:00:43]} 41. Qf1 {[%emt 0:36:33]} Qg3 {[%emt 0:31:39]} 42. Qg1 {[%emt 0:00:00]} Qh4 {[%emt 0:00:00]} 43. Qf1 {[%emt 0:00:00]} Kf7 {[%emt 0:00:00]} 44. b5 {[%emt 0:00:00]} Kg6 {[%emt 0:00:00]} 45. a6 {[%emt 0:00:00]} bxa6 {[%emt 0:00:00]} 46. bxa6 {[%emt 0:00:00]} Qg3 {[%emt 0:00:00]} 47. Qg1 {[%emt 0:00:00]} Ra3 {[%emt 0:26:22]} 48. Rf1 {[%emt 0:00:00]} Qh4 {[%emt 0:00:00]} 49. Rf2 {[%emt 0:00:00]} Be3 {[%emt 0:00:00]} 50. g3 {[%emt 0:01:02]} Qe4+ {[%emt 0:00:00]} 0-1

[Event "AUT-ch Open 2020"]
[Site "Graz"]
[Date "2020.02.15"]
[Round "2.11"]
[White "Stukan, Martin"]
[Black "Strukova, Ksenia"]
[Result "1-0"]
[ECO "E68"]
[WhiteElo "2292"]
[BlackElo "2043"]
[Annotator "ChessBase"]
[PlyCount "97"]
[EventDate "2020.02.14"]
[EventType "swiss"]
[EventCountry "AUT"]
[SourceTitle "playchess.com"]
[Source "ChessBase"]
[SourceQuality "1"]
[TimeControl "40/5400+30:1800+30"]

1. g3 {[%emt 0:00:00]} g6 {[%emt 0:00:00]} 2. Bg2 {[%emt 0:00:00]} Bg7 {[%emt 0:00:00]} 3. c4 {[%emt 0:00:00]} Nf6 {[%emt 0:00:44]} 4. Nc3 {[%emt 0:00:26]} d6 {[%emt 0:00:18]} 5. d4 {[%emt 0:02:27]} O-O {[%emt 0:00:10]} 6. Nf3 {[%emt 0:00:02]} Nbd7 {[%emt 0:00:09]} 7. O-O {[%emt 0:00:10]} e5 {[%emt 0:00:09]} 8. e4 {[%emt 0:00:04]} a6 {[%emt 0:04:22]} 9. b3 {[%emt 0:11:28]} exd4 {[%emt 0:11:18]} 10. Nxd4 {[%emt 0:00:05]} c5 {[%emt 0:05:46]} 11. Nde2 {[%emt 0:02:50]} Ne5 {[%emt 0:00:59]} 12. Bb2 {[%emt 0:02:09]} Rb8 {[%emt 0:02:26]} 13. Qd2 {[%emt 0:11:18]} Qc7 {[%emt 0:10:41]} 14. Rad1 {[%emt 0:03:19]} Rd8 {[%emt 0:06:21]} 15. f4 {[%emt 0:01:41]} Nc6 {[%emt 0:02:08]} 16. Nd5 {[%emt 0:00:58]} Nxd5 {[%emt 0:03:08]} 17. cxd5 {[%emt 0:00:05]} Ne7 {[%emt 0:04:56]} 18. f5 {[%emt 0:00:51]} Bxb2 {[%emt 0:14:24]} 19. Qxb2 {[%emt 0:00:05]} Bxf5 {[%emt 0:00:58]} 20. exf5 {[%emt 0:06:10]} Nxf5 {[%emt 0:00:07]} 21. Bh3 {[%emt 0:02:14]} Ng7 {[%emt 0:06:27]} 22. Nc3 {[%emt 0:02:00]} Re8 {[%emt 0:01:34]} 23. Rde1 {[%emt 0:00:13]} f5 {[%emt 0:01:27]} 24. g4 {[%emt 0:07:15]} Rxe1 {[%emt 0:00:31]} 25. Rxe1 {[%emt 0:00:04]} Qf7 {[%emt 0:00:13]} 26. Qf2 {[%emt 0:04:20]} b5 {[%emt 0:04:24]} 27. Ne2 {[%emt 0:05:26]} Re8 {[%emt 0:01:40]} 28. gxf5 {[%emt 0:01:09]} Qxd5 {[%emt 0:05:24]} 29. fxg6 {[%emt 0:02:15]} hxg6 {[%emt 0:00:27]} 30. Rf1 {[%emt 0:01:53]} Qd2 {[%emt 0:03:25]} 31. Nf4 {[%emt 0:01:48]} Qxf2+ {[%emt 0:02:13]} 32. Kxf2 {[%emt 0:01:38]} g5 {[%emt 0:01:07]} 33. Nd5 {[%emt 0:00:32]} Rf8+ {[%emt 0:01:04]} 34. Ke3 {[%emt 0:01:23]} Rxf1 {[%emt 0:00:06]} 35. Bxf1 {[%emt 0:00:03]} Ne6 {[%emt 0:01:04]} 36. Ke4 {[%emt 0:00:11]} Kf7 {[%emt 0:00:23]} 37. Kf5 {[%emt 0:01:15]} a5 {[%emt 0:00:21]} 38. Nc3 {[%emt 0:01:52]} c4 {[%emt 0:03:28]} 39. Nxb5 {[%emt 0:00:33]} Ng7+ {[%emt 0:01:35]} 40. Kxg5 {[%emt 0:00:09]} cxb3 {[%emt 0:00:06]} 41. Bc4+ {[%emt 0:30:12]} Ke7 {[%emt 0:30:05]} 42. axb3 {[%emt 0:00:05]} Ne8 {[%emt 0:00:14]} 43. h4 {[%emt 0:00:09]} Nf6 {[%emt 0:00:08]} 44. h5 {[%emt 0:00:06]} d5 {[%emt 0:00:31]} 45. Bd3 {[%emt 0:00:05]} Nxh5 {[%emt 0:00:49]} 46. Kxh5 {[%emt 0:00:05]} Kd7 {[%emt 0:00:03]} 47. Nc3 {[%emt 0:00:39]} Kd6 {[%emt 0:00:29]} 48. Nxd5 {[%emt 0:00:18]} Kxd5 {[%emt 0:00:04]} 49. Bb5 {[%emt 0:00:04]} 1-0

[Event "AUT-ch Open 2020"]
[Site "Graz"]
[Date "2020.02.15"]
[Round "2.12"]
[White "Mayrhuber, Tobias"]
[Black "Matt, Fabian"]
[Result "0-1"]
[ECO "A48"]
[WhiteElo "2028"]
[BlackElo "2290"]
[Annotator "ChessBase"]
[PlyCount "88"]
[EventDate "2020.02.14"]
[EventType "swiss"]
[EventCountry "AUT"]
[SourceTitle "playchess.com"]
[Source "ChessBase"]
[SourceQuality "1"]
[TimeControl "40/5400+30:1800+30"]

1. d4 {[%emt 0:00:00]} Nf6 {[%emt 0:00:00]} 2. Bf4 {[%emt 0:00:00]} g6 {[%emt 0:00:05]} 3. Nf3 {[%emt 0:00:18]} Bg7 {[%emt 0:00:13]} 4. h3 {[%emt 0:00:08]} b6 {[%emt 0:02:00]} 5. e3 {[%emt 0:00:12]} Bb7 {[%emt 0:00:05]} 6. Nbd2 {[%emt 0:01:16]} O-O {[%emt 0:00:35]} 7. Bd3 {[%emt 0:01:59]} d6 {[%emt 0:00:40]} 8. O-O {[%emt 0:00:42]} Nbd7 {[%emt 0:00:20]} 9. e4 {[%emt 0:03:15]} Re8 {[%emt 0:07:36]} 10. Re1 {[%emt 0:08:43]} e5 {[%emt 0:00:54]} 11. dxe5 {[%emt 0:02:42]} Nxe5 {[%emt 0:03:31]} 12. Nxe5 {[%emt 0:00:33]} dxe5 {[%emt 0:00:06]} 13. Bg5 {[%emt 0:06:28]} h6 {[%emt 0:08:26]} 14. Bxf6 {[%emt 0:06:55]} Qxf6 {[%emt 0:00:30]} 15. Nf1 {[%emt 0:00:49]} Bf8 {[%emt 0:00:45]} 16. Qd2 {[%emt 0:07:49]} Rad8 {[%emt 0:01:41]} 17. Ne3 {[%emt 0:08:49]} h5 {[%emt 0:01:37]} 18. Qc3 {[%emt 0:02:59]} Re7 {[%emt 0:03:39]} 19. a4 {[%emt 0:06:15]} a5 {[%emt 0:01:06]} 20. b4 {[%emt 0:01:09]} axb4 {[%emt 0:00:58]} 21. Qxb4 {[%emt 0:00:06]} Rd4 {[%emt 0:00:11]} 22. Qb3 {[%emt 0:02:53]} Red7 {[%emt 0:10:34]} 23. a5 {[%emt 0:02:11]} Rb4 {[%emt 0:00:08]} 24. Qc3 {[%emt 0:01:54]} bxa5 {[%emt 0:00:22]} 25. Rxa5 {[%emt 0:04:52]} Bxe4 {[%emt 0:00:53]} 26. Rxe5 {[%emt 0:01:19]} Bxd3 {[%emt 0:28:12]} 27. cxd3 {[%emt 0:01:07]} Rf4 {[%emt 0:00:30]} 28. Nd1 {[%emt 0:02:34]} Bb4 {[%emt 0:05:15]} 29. Re8+ {[%emt 0:00:19]} Kg7 {[%emt 0:00:05]} 30. Qxf6+ {[%emt 0:00:08]} Kxf6 {[%emt 0:00:08]} 31. R1e3 {[%emt 0:00:42]} Bc5 {[%emt 0:00:30]} 32. d4 {[%emt 0:04:32]} Bxd4 {[%emt 0:02:56]} 33. Rd3 {[%emt 0:03:49]} c5 {[%emt 0:00:24]} 34. Ne3 {[%emt 0:04:00]} Kg7 {[%emt 0:05:13]} 35. g3 {[%emt 0:07:14]} Rf6 {[%emt 0:00:56]} 36. Rc8 {[%emt 0:00:25]} Ra7 {[%emt 0:00:25]} 37. Rd2 {[%emt 0:03:24]} Ra3 {[%emt 0:00:26]} 38. Kh2 {[%emt 0:02:17]} Rf3 {[%emt 0:01:04]} 39. h4 {[%emt 0:02:11]} Bxe3 {[%emt 0:00:32]} 40. fxe3 {[%emt 0:00:05]} Raxe3 {[%emt 0:00:29]} 41. Rxc5 {[%emt 0:30:26]} Rxg3 {[%emt 0:30:07]} 42. Rd4 {[%emt 0:02:55]} Rh3+ {[%emt 0:00:26]} 43. Kg2 {[%emt 0:00:10]} Reg3+ {[%emt 0:00:09]} 44. Kf2 {[%emt 0:00:08]} Rg4 {[%emt 0:00:09]} 0-1

[Event "AUT-ch Open 2020"]
[Site "Graz"]
[Date "2020.02.15"]
[Round "2.13"]
[White "Rathnakaran, K.."]
[Black "Livaic, Leon"]
[Result "0-1"]
[ECO "C54"]
[WhiteElo "2334"]
[BlackElo "2492"]
[Annotator "ChessBase"]
[PlyCount "88"]
[EventDate "2020.02.14"]
[EventType "swiss"]
[EventCountry "AUT"]
[SourceTitle "playchess.com"]
[Source "ChessBase"]
[SourceQuality "1"]
[TimeControl "40/5400+30:1800+30"]

1. e4 {[%emt 0:00:00]} e5 {[%emt 0:00:04]} 2. Nf3 {[%emt 0:00:00]} Nc6 {[%emt 0:00:08]} 3. Bc4 {[%emt 0:00:04]} Bc5 {[%emt 0:00:09]} 4. c3 {[%emt 0:00:06]} Nf6 {[%emt 0:00:05]} 5. d3 {[%emt 0:00:08]} d6 {[%emt 0:00:38]} 6. Bb3 {[%emt 0:00:06]} a5 {[%emt 0:02:01]} 7. Bg5 {[%emt 0:00:15]} h6 {[%emt 0:02:04]} 8. Bh4 {[%emt 0:00:06]} Be6 {[%emt 0:04:53]} 9. Ba4 {[%emt 0:00:16]} g5 {[%emt 0:04:50]} 10. Bg3 {[%emt 0:00:05]} O-O {[%emt 0:03:01]} 11. a3 {[%emt 0:01:41]} Ba7 {[%emt 0:02:13]} 12. Nbd2 {[%emt 0:00:11]} Ne7 {[%emt 0:04:06]} 13. h4 {[%emt 0:01:46]} g4 {[%emt 0:00:14]} 14. Nh2 {[%emt 0:00:08]} Ng6 {[%emt 0:06:00]} 15. Ndf1 {[%emt 0:00:32]} Nf4 {[%emt 0:07:49]} 16. Ne3 {[%emt 0:01:34]} Bxe3 {[%emt 0:24:08]} 17. fxe3 {[%emt 0:00:07]} N4h5 {[%emt 0:00:02]} 18. Nf1 {[%emt 0:00:08]} c6 {[%emt 0:00:45]} 19. Qd2 {[%emt 0:00:38]} Nd7 {[%emt 0:01:16]} 20. Bf2 {[%emt 0:03:01]} f5 {[%emt 0:11:19]} 21. exf5 {[%emt 0:00:07]} Rxf5 {[%emt 0:00:03]} 22. Ng3 {[%emt 0:00:22]} Nxg3 {[%emt 0:00:04]} 23. Bxg3 {[%emt 0:00:06]} Qe7 {[%emt 0:03:20]} 24. e4 {[%emt 0:01:50]} Rf6 {[%emt 0:00:05]} 25. h5 {[%emt 0:00:05]} Qg7 {[%emt 0:01:02]} 26. Bc2 {[%emt 0:04:50]} Raf8 {[%emt 0:01:05]} 27. b4 {[%emt 0:00:27]} axb4 {[%emt 0:01:13]} 28. axb4 {[%emt 0:00:11]} d5 {[%emt 0:08:12]} 29. Qe3 {[%emt 0:07:17]} dxe4 {[%emt 0:00:48]} 30. dxe4 {[%emt 0:00:08]} Bc4 {[%emt 0:02:54]} 31. O-O-O {[%emt 0:01:02]} c5 {[%emt 0:01:29]} 32. bxc5 {[%emt 0:02:09]} Ra6 {[%emt 0:00:13]} 33. Rd6 {[%emt 0:00:43]} Ra1+ {[%emt 0:03:46]} 34. Bb1 {[%emt 0:00:55]} Nf6 {[%emt 0:03:44]} 35. Bxe5 {[%emt 0:03:50]} Ba2 {[%emt 0:00:15]} 36. Kb2 {[%emt 0:02:47]} Rxb1+ {[%emt 0:02:39]} 37. Rxb1 {[%emt 0:00:07]} Qf7 {[%emt 0:00:13]} 38. Rb6 {[%emt 0:00:09]} Bxb1 {[%emt 0:00:13]} 39. Kxb1 {[%emt 0:00:08]} Ra8 {[%emt 0:01:45]} 40. Bxf6 {[%emt 0:04:38]} Qa2+ {[%emt 0:00:05]} 41. Kc1 {[%emt 0:30:18]} Qxg2 {[%emt 0:04:14]} 42. Bh4 {[%emt 0:00:00]} Ra1+ {[%emt 0:03:43]} 43. Rb1 {[%emt 0:00:00]} Ra2 {[%emt 0:00:20]} 44. Bf2 {[%emt 0:00:00]} Rxf2 {[%emt 0:00:23]} 0-1

[Event "AUT-ch Open 2020"]
[Site "Graz"]
[Date "2020.02.15"]
[Round "2.13"]
[White "Welling, Gerard"]
[Black "Lupolov, Boris"]
[Result "1/2-1/2"]
[ECO "B10"]
[WhiteElo "2286"]
[BlackElo "1973"]
[Annotator "ChessBase"]
[PlyCount "94"]
[EventDate "2020.02.14"]
[EventType "swiss"]
[EventCountry "AUT"]
[SourceTitle "playchess.com"]
[Source "ChessBase"]
[SourceQuality "1"]
[TimeControl "40/5400+30:1800+30"]

1. e4 {[%emt 0:00:00]} c6 {[%emt 0:01:35]} 2. f4 {[%emt 0:00:00]} d5 {[%emt 0:00:05]} 3. e5 {[%emt 0:00:00]} c5 {[%emt 0:01:03]} 4. c3 {[%emt 0:00:10]} Nc6 {[%emt 0:00:10]} 5. Na3 {[%emt 0:01:53]} Nh6 {[%emt 0:01:59]} 6. Nf3 {[%emt 0:00:21]} Bg4 {[%emt 0:06:14]} 7. h3 {[%emt 0:00:14]} Bxf3 {[%emt 0:00:19]} 8. Qxf3 {[%emt 0:00:03]} e6 {[%emt 0:00:19]} 9. Bb5 {[%emt 0:04:52]} Nf5 {[%emt 0:04:20]} 10. g4 {[%emt 0:06:41]} Nh4 {[%emt 0:14:49]} 11. Qf2 {[%emt 0:05:13]} Be7 {[%emt 0:01:21]} 12. O-O {[%emt 0:09:59]} h5 {[%emt 0:08:01]} 13. g5 {[%emt 0:10:30]} Nf5 {[%emt 0:03:59]} 14. Bd3 {[%emt 0:00:06]} g6 {[%emt 0:03:15]} 15. Bxf5 {[%emt 0:00:35]} exf5 {[%emt 0:06:22]} 16. Nc2 {[%emt 0:00:29]} Qd7 {[%emt 0:01:45]} 17. d4 {[%emt 0:00:27]} c4 {[%emt 0:06:21]} 18. b3 {[%emt 0:05:56]} b5 {[%emt 0:00:59]} 19. bxc4 {[%emt 0:01:38]} bxc4 {[%emt 0:00:08]} 20. Ba3 {[%emt 0:01:13]} Nd8 {[%emt 0:04:38]} 21. Bxe7 {[%emt 0:00:17]} Kxe7 {[%emt 0:00:09]} 22. Ne3 {[%emt 0:02:12]} Ne6 {[%emt 0:00:11]} 23. Rab1 {[%emt 0:01:00]} Rhb8 {[%emt 0:04:24]} 24. Qf3 {[%emt 0:05:11]} Nc7 {[%emt 0:00:48]} 25. Qg2 {[%emt 0:01:24]} Ke6 {[%emt 0:16:23]} 26. Qc2 {[%emt 0:01:20]} Rb6 {[%emt 0:02:15]} 27. Rb2 {[%emt 0:04:02]} Rab8 {[%emt 0:03:32]} 28. Rfb1 {[%emt 0:00:10]} Nb5 {[%emt 0:02:42]} 29. Qc1 {[%emt 0:01:51]} Qe7 {[%emt 0:02:56]} 30. a4 {[%emt 0:01:00]} Nc7 {[%emt 0:01:15]} 31. Rxb6+ {[%emt 0:01:01]} axb6 {[%emt 0:00:14]} 32. Kf2 {[%emt 0:01:21]} Qd7 {[%emt 0:01:33]} 33. Qa3 {[%emt 0:01:50]} Qe7 {[%emt 0:01:10]} 34. Qa2 {[%emt 0:00:17]} Kd7 {[%emt 0:00:28]} 35. Rb4 {[%emt 0:01:44]} Qe6 {[%emt 0:00:12]} 36. Qb1 {[%emt 0:03:02]} Qc6 {[%emt 0:00:22]} 37. h4 {[%emt 0:02:58]} Na6 {[%emt 0:00:56]} 38. Rb2 {[%emt 0:00:24]} Nc7 {[%emt 0:00:04]} 39. Kg3 {[%emt 0:00:31]} Rb7 {[%emt 0:01:07]} 40. Nc2 {[%emt 0:10:27]} Qxa4 {[%emt 0:00:51]} 41. Nb4 {[%emt 0:30:32]} Qa3 {[%emt 0:30:34]} 42. Qc2 {[%emt 0:01:06]} Ke6 {[%emt 0:00:00]} 43. Qd2 {[%emt 0:00:00]} Qa1 {[%emt 0:00:00]} 44. Kg2 {[%emt 0:00:00]} b5 {[%emt 0:00:00]} 45. Ra2 {[%emt 0:00:00]} Qb1 {[%emt 0:00:00]} 46. Qe3 {[%emt 0:00:00]} Qe4+ {[%emt 0:00:00]} 47. Qf3 {[%emt 0:00:00]} Ke7 {[%emt 0:00:00]} 1/2-1/2